fUSD/lending_fUSD_20240526
["ID","MTS","AMOUNT","RATE_DAILY","PERIOD"]
[328005753,1716766352204,-4278.59,0.00032328,4]
[328005754,1716766352214,-6703.51,0.00032328,4]
[328005755,1716766352224,-377.32,0.00032328,4]
[328005756,1716766352234,-1138.56,0.00032328,4]
[328005757,1716766352244,-500.0,0.00032328,4]
[328005758,1716766352255,-409.98,0.00032328,4]
[328005759,1716766352270,-880.9,0.00032328,4]
[328005760,1716766352279,-772.3,0.00032328,4]
[328005761,1716766352289,-1237.34,0.00032328,4]
[328005762,1716766352301,-891.81,0.00032328,4]
[328005763,1716766352311,-588.35,0.00032328,4]
[328005764,1716766352321,-500.0,0.00032328,4]
[328005765,1716766352331,-500.0,0.00032328,4]
[328005766,1716766352343,-930.12,0.00032328,4]
[328005767,1716766352354,-723.38,0.00032328,4]
[328005768,1716766352364,-500.0,0.00032328,4]
[328005769,1716766352374,-3019.87,0.00032328,4]
[328005770,1716766352383,-500.0,0.00032328,4]
[328005771,1716766352394,-737.24,0.00032328,4]
[328005772,1716766352403,-500.0,0.00032328,4]
[328005773,1716766352413,-3353.66,0.00032328,4]
[328005774,1716766352423,-1655.73,0.00032328,4]
[328005775,1716766352433,-500.0,0.00032328,4]
[328005776,1716766352443,-557.95,0.00032328,4]
[328005777,1716766352453,-628.01,0.00032328,4]
[328005778,1716766352462,-1130.95,0.00032328,4]
[328005779,1716766352472,-466.9,0.00032328,4]
[328005780,1716766352481,-2845.63,0.00032328,4]
[328005781,1716766352490,-1950.47,0.00032328,4]
[328005782,1716766352500,-902.66,0.00032328,4]
[328005783,1716766352510,-786.5,0.00032328,4]
[328005784,1716766352520,-1344.42,0.00032328,4]
[328005785,1716766352530,-7054.88,0.00032328,4]
[328005786,1716766352540,-1190.17,0.00032328,4]
[328005787,1716766352549,-693.7,0.00032328,4]
[328005788,1716766352559,-792.19,0.00032328,4]
[328005789,1716766352569,-753.14,0.00032328,4]
[328005790,1716766352578,-500.0,0.00032328,4]
[328005791,1716766352587,-1616.54,0.00032328,4]
[328005792,1716766352597,-500.0,0.00032328,4]
[328005793,1716766352606,-735.26,0.00032328,4]
[328005794,1716766352616,-1672.85,0.00032328,4]
[328005795,1716766352625,-1478.27,0.00032328,4]
[328005796,1716766352635,-549.3,0.00032328,4]
[328005797,1716766352646,-1055.1,0.00032328,4]
[328005798,1716766352655,-564.5,0.00032328,4]
[328005799,1716766352665,-1222.14,0.00032328,4]
[328005800,1716766352676,-1219.52,0.00032328,4]
[328005801,1716766352686,-2006.47,0.00032328,4]
[328005802,1716766352695,-860.6,0.00032328,4]
[328005803,1716766352705,-1285.66,0.00032328,4]
[328005804,1716766352714,-1245.87,0.00032328,4]
[328005805,1716766352724,-500.0,0.00032328,4]
[328005806,1716766352734,-1054.38,0.00032328,4]
[328005807,1716766352744,-686.51,0.00032328,4]
[328005808,1716766352754,-2090.3,0.00032328,4]
[328005809,1716766352763,-500.0,0.00032328,4]
[328005810,1716766352774,-4489.53,0.00032328,4]
[328005811,1716766352784,-500.0,0.00032328,4]
[328005812,1716766352795,-660.84,0.00032328,4]
[328005813,1716766352805,-1241.08,0.00032328,4]
[328005814,1716766352815,-1622.1,0.00032328,4]
[328005815,1716766352825,-1457.46,0.00032328,4]
[328005816,1716766352834,-519.03,0.00032328,4]
[328005817,1716766352844,-767.41,0.00032328,4]
[328005818,1716766352853,-540.35,0.00032328,4]
[328005819,1716766352864,-535.71,0.00032328,4]
[328005820,1716766352874,-754.4,0.00032328,4]
[328005821,1716766352884,-1446.35,0.00032328,4]
[328005822,1716766352895,-3162.97,0.00032328,4]
[328005823,1716766352905,-656.74,0.00032328,4]
[328005824,1716766352915,-698.24,0.00032328,4]
[328005825,1716766352925,-1154.85,0.00032328,4]
[328005826,1716766352934,-1334.79,0.00032328,4]
[328005827,1716766352944,-962.47,0.00032328,4]
[328005828,1716766352953,-1228.33,0.00032328,4]
[328005829,1716766352963,-640.61,0.00032328,4]
[328005830,1716766352972,-594.66,0.00032328,4]
[328005831,1716766352981,-985.50828,0.0003239,2]
[328005832,1716766352991,-1000.0,0.00032481,2]
[328005833,1716766353001,-338.64741588,0.00032486,10]
[328005834,1716766353010,-500.0,0.00032486,10]
[328005835,1716766353020,-157.6,0.000325,2]
[328005836,1716766353029,-944.44,0.00032602,4]
[328005837,1716766353039,-791.42,0.00032602,4]
[328005838,1716766353049,-822.31,0.00032602,4]
[328005839,1716766353059,-620.76,0.00032602,4]
[328005840,1716766353069,-500.0,0.00032602,4]
[328005841,1716766353078,-576.1,0.00032602,4]
[328005842,1716766353087,-697.5,0.00032602,4]
[328005843,1716766353097,-547.78,0.00032602,4]
[328005844,1716766353107,-745.11,0.00032602,4]
[328005845,1716766353117,-380.52,0.00032602,4]
[328005846,1716766353126,-548.59,0.00032602,4]
[328005847,1716766353136,-521.76,0.00032602,4]
[328005848,1716766353146,-546.32,0.00032602,4]
[328005849,1716766353155,-503.3,0.00032602,4]
[328005850,1716766353166,-192.44,0.00032602,4]
[328005851,1716766353175,-513.73,0.00032602,4]
[328005852,1716766353185,-1125.41,0.00032602,4]
[328005853,1716766353194,-534.62,0.00032602,4]
[328005854,1716766353203,-540.75,0.00032602,4]
[328005855,1716766353212,-500.0,0.00032602,4]
[328005856,1716766353223,-1235.19,0.00032602,4]
[328005857,1716766353232,-729.16,0.00032602,4]
[328005858,1716766353241,-500.0,0.00032602,4]
[328005859,1716766353252,-864.88,0.00032602,4]
[328005860,1716766353264,-569.03,0.00032602,4]
[328005861,1716766353275,-963.86,0.00032602,4]
[328005862,1716766353285,-500.0,0.00032602,4]
[328005863,1716766353295,-500.0,0.00032602,4]
[328005864,1716766353305,-874.71,0.00032602,4]
[328005865,1716766353314,-835.43,0.00032602,4]
[328005866,1716766353324,-529.68,0.00032602,4]
[328005867,1716766353335,-1126.6,0.00032602,4]
[328005868,1716766353345,-1097.89,0.00032602,4]
[328005869,1716766353355,-866.64,0.00032602,4]
[328005870,1716766353364,-524.51,0.00032602,4]
[328005871,1716766353373,-347.96,0.00032602,4]
[328005872,1716766353383,-500.0,0.00032602,4]
[328005873,1716766353392,-754.22,0.00032602,4]
[328005874,1716766353402,-1051.14,0.00032602,4]
[328005875,1716766353411,-500.0,0.00032602,4]
[328005876,1716766353421,-500.0,0.00032602,4]
[328005877,1716766353432,-500.0,0.00032602,4]
[328005878,1716766353442,-1051.14,0.00032602,4]
[328005879,1716766353452,-500.0,0.00032602,4]
[328005880,1716766353463,-1380.33,0.00032602,4]
[328005881,1716766353473,-828.3,0.00032602,4]
[328005882,1716766353483,-832.97,0.00032602,4]
[328005883,1716766353492,-500.0,0.00032602,4]
[328005884,1716766353502,-716.96,0.00032602,4]
[328005885,1716766353512,-500.0,0.00032602,4]
[328005886,1716766353522,-616.66,0.00032602,4]
[328005887,1716766353532,-179.56,0.00032602,4]
[328005888,1716766353542,-808.3,0.00032602,4]
[328005889,1716766353551,-500.0,0.00032602,4]
[328005890,1716766353560,-1217.19,0.00032602,4]
[328005891,1716766353570,-520.62,0.00032602,4]
[328005892,1716766353580,-1635.18,0.00032602,4]
[328005893,1716766353589,-500.0,0.00032602,4]
[328005894,1716766353599,-988.23,0.00032602,4]
[328005895,1716766353607,-951.24,0.00032602,4]
[328005896,1716766353617,-4763.6,0.00032602,4]
[328005897,1716766353627,-1408.55,0.00032602,4]
[328005898,1716766353636,-773.49,0.00032602,4]
[328005899,1716766353646,-500.0,0.00032602,4]
[328005900,1716766353655,-1097.24,0.00032602,4]
[328005901,1716766353664,-1770.78,0.00032602,4]
[328005902,1716766353673,-1324.66,0.00032602,4]
[328005903,1716766353682,-716.14,0.00032602,4]
[328005904,1716766353691,-1231.06,0.00032602,4]
[328005905,1716766353701,-12518.24,0.00032602,4]
[328005906,1716766353710,-808.36,0.00032602,4]
[328005907,1716766353719,-648.03,0.00032602,4]
[328005908,1716766353729,-1164.95,0.00032602,4]
[328005909,1716766353739,-2740.82,0.00032602,4]
[328005910,1716766353748,-595.23,0.00032602,4]
[328005911,1716766353757,-566.07,0.00032602,4]
[328005912,1716766353768,-745.74,0.00032602,4]
[328005913,1716766353777,-563.58,0.00032602,4]
[328005914,1716766353786,-1642.45,0.00032602,4]
[328005915,1716766353796,-538.9,0.00032602,4]
[328005916,1716766353805,-5551.36,0.00032602,4]
[328005917,1716766353814,-500.0,0.00032602,4]
[328005918,1716766353824,-593.26,0.00032602,4]
[328005919,1716766353833,-972.91,0.00032602,4]
[328005920,1716766353843,-561.18,0.00032602,4]
[328005921,1716766353853,-575.29,0.00032602,4]
[328005922,1716766353862,-881.68,0.00032602,4]
[328005923,1716766353872,-1259.79,0.00032602,4]
[328005924,1716766353881,-605.76,0.00032602,4]
[328005925,1716766353891,-3536.07,0.00032602,4]
[328005926,1716766353900,-500.0,0.00032602,4]
[328005927,1716766353910,-850.48,0.00032602,4]
[328005928,1716766353919,-826.83,0.00032602,4]
[328005929,1716766353929,-1946.87,0.00032602,4]
[328005930,1716766353939,-1471.62,0.00032602,4]
[328005931,1716766353948,-1299.03,0.00032602,4]
[328005932,1716766353957,-874.0,0.00032602,4]
[328005933,1716766353967,-654.22,0.00032602,4]
[328005934,1716766353977,-509.25,0.00032602,4]
[328005935,1716766353986,-777.17,0.00032602,4]
[328005936,1716766353996,-1565.29,0.00032602,4]
[328005937,1716766354006,-855.17,0.00032602,4]
[328005938,1716766354090,-701.7,0.00032602,4]
[328005939,1716766354101,-8290.14,0.00032602,4]
[328005940,1716766354111,-761.08,0.00032602,4]
[328005941,1716766354122,-599.5,0.00032602,4]
[328005942,1716766354132,-643.13,0.00032602,4]
[328005943,1716766354142,-4278.59,0.00032602,4]
[328005944,1716766354151,-6703.51,0.00032602,4]
[328005945,1716766354161,-1138.56,0.00032602,4]
[328005946,1716766354172,-155.69,0.00032602,4]
[328005947,1716766354182,-880.9,0.00032602,4]
[328005948,1716766354192,-1237.34,0.00032602,4]
[328005949,1716766354202,-772.3,0.00032602,4]
[328005950,1716766354212,-891.81,0.00032602,4]
[328005951,1716766354221,-588.35,0.00032602,4]
[328005952,1716766354230,-500.0,0.00032602,4]
[328005953,1716766354239,-500.0,0.00032602,4]
[328005954,1716766354249,-930.12,0.00032602,4]
[328005955,1716766354262,-723.38,0.00032602,4]
[328005956,1716766354271,-500.0,0.00032602,4]
[328005957,1716766354281,-3019.87,0.00032602,4]
[328005958,1716766354290,-500.0,0.00032602,4]
[328005959,1716766354302,-737.24,0.00032602,4]
[328005960,1716766354312,-500.0,0.00032602,4]
[328005961,1716766354321,-3353.66,0.00032602,4]
[328005962,1716766354330,-1655.73,0.00032602,4]
[328005963,1716766354343,-500.0,0.00032602,4]
[328005964,1716766354355,-557.95,0.00032602,4]
[328005965,1716766354364,-628.01,0.00032602,4]
[328005966,1716766354373,-1130.95,0.00032602,4]
[328005967,1716766354382,-2845.63,0.00032602,4]
[328005968,1716766354391,-1950.47,0.00032602,4]
[328005969,1716766354400,-902.66,0.00032602,4]
[328005970,1716766354409,-786.5,0.00032602,4]
[328005971,1716766354419,-1344.42,0.00032602,4]
[328005972,1716766354428,-7054.88,0.00032602,4]
[328005973,1716766354437,-1190.17,0.00032602,4]
[328005974,1716766354446,-693.7,0.00032602,4]
[328005975,1716766354455,-792.19,0.00032602,4]
[328005976,1716766354465,-753.14,0.00032602,4]
[328005977,1716766354474,-500.0,0.00032602,4]
[328005978,1716766354484,-1616.54,0.00032602,4]
[328005979,1716766354493,-500.0,0.00032602,4]
[328005980,1716766354502,-735.26,0.00032602,4]
[328005981,1716766354511,-1672.85,0.00032602,4]
[328005982,1716766354521,-1478.27,0.00032602,4]
[328005983,1716766354531,-1055.1,0.00032602,4]
[328005984,1716766354540,-564.5,0.00032602,4]
[328005985,1716766354550,-1222.14,0.00032602,4]
[328005986,1716766354559,-1219.52,0.00032602,4]
[328005987,1716766354568,-2006.47,0.00032602,4]
[328005988,1716766354577,-860.6,0.00032602,4]
[328005989,1716766354587,-1285.66,0.00032602,4]
[328005990,1716766354595,-1245.87,0.00032602,4]
[328005991,1716766354605,-500.0,0.00032602,4]
[328005992,1716766354614,-1054.38,0.00032602,4]
[328005993,1716766354623,-686.51,0.00032602,4]
[328005994,1716766354632,-2090.3,0.00032602,4]
[328005995,1716766354641,-500.0,0.00032602,4]
[328005996,1716766354650,-4489.53,0.00032602,4]
[328005997,1716766354659,-466.15,0.00032602,4]
[328005998,1716766354669,-660.84,0.00032602,4]
[328005999,1716766354678,-1241.08,0.00032602,4]
[328006000,1716766354687,-1622.1,0.00032602,4]
[328006001,1716766354696,-1457.46,0.00032602,4]
[328006002,1716766354705,-519.03,0.00032602,4]
[328006003,1716766354714,-767.41,0.00032602,4]
[328006004,1716766354723,-540.35,0.00032602,4]
[328006005,1716766354732,-535.71,0.00032602,4]
[328006006,1716766354742,-754.4,0.00032602,4]
[328006007,1716766354751,-1446.35,0.00032602,4]
[328006008,1716766354760,-3162.97,0.00032602,4]
[328006009,1716766354770,-656.74,0.00032602,4]
[328006010,1716766354780,-698.24,0.00032602,4]
[328006011,1716766354789,-1154.85,0.00032602,4]
[328006012,1716766354798,-1334.79,0.00032602,4]
[328006013,1716766354807,-962.47,0.00032602,4]
[328006014,1716766354816,-1228.33,0.00032602,4]
[328006015,1716766354827,-1214.89532928,0.00032699,2]
[328006016,1716766354835,-277.054223,0.000328,21]
[328006017,1716766354844,-891.54116358,0.00032875,2]
[328006018,1716766354854,-944.44,0.00032876,4]
[328006019,1716766354864,-791.42,0.00032876,4]
[328006020,1716766354874,-822.31,0.00032876,4]
[328006021,1716766354883,-620.76,0.00032876,4]
[328006022,1716766354892,-500.0,0.00032876,4]
[328006023,1716766354902,-576.1,0.00032876,4]
[328006024,1716766354911,-697.5,0.00032876,4]
[328006025,1716766354922,-547.78,0.00032876,4]
[328006026,1716766354931,-745.11,0.00032876,4]
[328006027,1716766354940,-548.59,0.00032876,4]
[328006028,1716766354949,-521.76,0.00032876,4]
[328006029,1716766354959,-546.32,0.00032876,4]
[328006030,1716766354969,-503.3,0.00032876,4]
[328006031,1716766354980,-513.73,0.00032876,4]
[328006032,1716766354990,-1125.41,0.00032876,4]
[328006033,1716766355000,-534.62,0.00032876,4]
[328006034,1716766355010,-540.75,0.00032876,4]
[328006035,1716766355019,-500.0,0.00032876,4]
[328006036,1716766355029,-1235.19,0.00032876,4]
[328006037,1716766355038,-729.16,0.00032876,4]
[328006038,1716766355047,-524.82,0.00032876,4]
[328006039,1716766355056,-864.88,0.00032876,4]
[328006040,1716766355066,-963.86,0.00032876,4]
[328006041,1716766355075,-192.69,0.00032876,4]
[328006042,1716766355085,-500.0,0.00032876,4]
[328006043,1716766355094,-874.71,0.00032876,4]
[328006044,1716766355103,-835.43,0.00032876,4]
[328006045,1716766355112,-529.68,0.00032876,4]
[328006046,1716766355122,-1126.6,0.00032876,4]
[328006047,1716766355131,-1097.89,0.00032876,4]
[328006048,1716766355140,-866.64,0.00032876,4]
[328006049,1716766355150,-524.51,0.00032876,4]
[328006050,1716766355159,-500.0,0.00032876,4]
[328006051,1716766355169,-754.22,0.00032876,4]
[328006052,1716766355178,-1051.14,0.00032876,4]
[328006053,1716766355188,-211.78,0.00032876,4]
[328006054,1716766355197,-500.0,0.00032876,4]
[328006055,1716766355206,-500.0,0.00032876,4]
[328006056,1716766355215,-1051.14,0.00032876,4]
[328006057,1716766355225,-500.0,0.00032876,4]
[328006058,1716766355234,-1380.33,0.00032876,4]
[328006059,1716766355243,-828.3,0.00032876,4]
[328006060,1716766355254,-832.97,0.00032876,4]
[328006061,1716766355268,-243.9,0.00032876,4]
[328006062,1716766355278,-716.96,0.00032876,4]
[328006063,1716766355287,-500.0,0.00032876,4]
[328006064,1716766355299,-616.66,0.00032876,4]
[328006065,1716766355308,-179.56,0.00032876,4]
[328006066,1716766355317,-808.3,0.00032876,4]
[328006067,1716766355326,-500.0,0.00032876,4]
[328006068,1716766355338,-1217.19,0.00032876,4]
[328006069,1716766355347,-520.62,0.00032876,4]
[328006070,1716766355356,-1635.18,0.00032876,4]
[328006071,1716766355365,-630.3,0.00032876,4]
[328006072,1716766355375,-988.23,0.00032876,4]
[328006073,1716766355384,-951.24,0.00032876,4]
[328006074,1716766355394,-4763.6,0.00032876,4]
[328006075,1716766355403,-1408.55,0.00032876,4]
[328006076,1716766355413,-773.49,0.00032876,4]
[328006077,1716766355422,-555.93,0.00032876,4]
[328006078,1716766355432,-1097.24,0.00032876,4]
[328006079,1716766355441,-1770.78,0.00032876,4]
[328006080,1716766355450,-1324.66,0.00032876,4]
[328006081,1716766355460,-716.14,0.00032876,4]
[328006082,1716766355469,-1231.06,0.00032876,4]
[328006083,1716766355479,-12518.24,0.00032876,4]
[328006084,1716766355488,-808.36,0.00032876,4]
[328006085,1716766355497,-648.03,0.00032876,4]
[328006086,1716766355506,-1164.95,0.00032876,4]
[328006087,1716766355515,-2740.82,0.00032876,4]
[328006088,1716766355526,-595.23,0.00032876,4]
[328006089,1716766355535,-566.07,0.00032876,4]
[328006090,1716766355544,-745.74,0.00032876,4]
[328006091,1716766355554,-563.58,0.00032876,4]
[328006092,1716766355564,-1642.45,0.00032876,4]
[328006093,1716766355574,-538.9,0.00032876,4]
[328006094,1716766355583,-5551.36,0.00032876,4]
[328006095,1716766355592,-500.0,0.00032876,4]
[328006096,1716766355602,-593.26,0.00032876,4]
[328006097,1716766355612,-972.91,0.00032876,4]
[328006098,1716766355621,-561.18,0.00032876,4]
[328006099,1716766355630,-575.29,0.00032876,4]
[328006100,1716766355639,-881.68,0.00032876,4]
[328006101,1716766355649,-1259.79,0.00032876,4]
[328006102,1716766355659,-605.76,0.00032876,4]
[328006103,1716766355668,-3536.07,0.00032876,4]
[328006104,1716766355677,-500.0,0.00032876,4]
[328006105,1716766355687,-850.48,0.00032876,4]
[328006106,1716766355696,-826.83,0.00032876,4]
[328006107,1716766355705,-1946.87,0.00032876,4]
[328006108,1716766355714,-1471.62,0.00032876,4]
[328006109,1716766355723,-1299.03,0.00032876,4]
[328006110,1716766355733,-874.0,0.00032876,4]
[328006111,1716766355742,-654.22,0.00032876,4]
[328006112,1716766355752,-509.25,0.00032876,4]
[328006113,1716766355761,-777.17,0.00032876,4]
[328006114,1716766355772,-1565.29,0.00032876,4]
[328006115,1716766355781,-855.17,0.00032876,4]
[328006116,1716766355790,-701.7,0.00032876,4]
[328006117,1716766355799,-8290.14,0.00032876,4]
[328006118,1716766355808,-761.08,0.00032876,4]
[328006119,1716766355818,-599.5,0.00032876,4]
[328006120,1716766355827,-643.13,0.00032876,4]
[328006121,1716766355837,-4278.59,0.00032876,4]
[328006122,1716766355846,-6703.51,0.00032876,4]
[328006123,1716766355855,-1138.56,0.00032876,4]
[328006124,1716766355864,-880.9,0.00032876,4]
[328006125,1716766355873,-1237.34,0.00032876,4]
[328006126,1716766355882,-772.3,0.00032876,4]
[328006127,1716766355891,-891.81,0.00032876,4]
[328006128,1716766355901,-588.35,0.00032876,4]
[328006129,1716766355910,-500.0,0.00032876,4]
[328006130,1716766355919,-500.0,0.00032876,4]
[328006131,1716766355929,-930.12,0.00032876,4]
[328006132,1716766355939,-723.38,0.00032876,4]
[328006133,1716766355949,-500.0,0.00032876,4]
[328006134,1716766355958,-3019.87,0.00032876,4]
[328006135,1716766355967,-500.0,0.00032876,4]
[328006136,1716766355976,-737.24,0.00032876,4]
[328006137,1716766355988,-500.0,0.00032876,4]
[328006138,1716766355998,-3353.66,0.00032876,4]
[328006139,1716766356008,-1655.73,0.00032876,4]
[328006140,1716766356020,-500.0,0.00032876,4]
[328006141,1716766356030,-557.95,0.00032876,4]
[328006142,1716766356041,-628.01,0.00032876,4]
[328006143,1716766356050,-1130.95,0.00032876,4]
[328006144,1716766356059,-2845.63,0.00032876,4]
[328006145,1716766356069,-1950.47,0.00032876,4]
[328006146,1716766356078,-902.66,0.00032876,4]
[328006147,1716766356087,-786.5,0.00032876,4]
[328006148,1716766356096,-1344.42,0.00032876,4]
[328006149,1716766356108,-7054.88,0.00032876,4]
[328006150,1716766356117,-1190.17,0.00032876,4]
[328006151,1716766356126,-693.7,0.00032876,4]
[328006152,1716766356135,-792.19,0.00032876,4]
[328006153,1716766356144,-753.14,0.00032876,4]
[328006154,1716766356154,-615.58,0.00032876,4]
[328006155,1716766356163,-1616.54,0.00032876,4]
[328006156,1716766356172,-500.0,0.00032876,4]
[328006157,1716766356182,-735.26,0.00032876,4]
[328006158,1716766356191,-1672.85,0.00032876,4]
[328006159,1716766356200,-1478.27,0.00032876,4]
[328006160,1716766356210,-1055.1,0.00032876,4]
[328006161,1716766356219,-564.5,0.00032876,4]
[328006162,1716766356228,-1222.14,0.00032876,4]
[328006163,1716766356237,-1219.52,0.00032876,4]
[328006164,1716766356246,-2006.47,0.00032876,4]
[328006165,1716766356258,-860.6,0.00032876,4]
[328006166,1716766356268,-1285.66,0.00032876,4]
[328006167,1716766356279,-1245.87,0.00032876,4]
[328006168,1716766356289,-500.0,0.00032876,4]
[328006169,1716766356298,-1054.38,0.00032876,4]
[328006170,1716766356310,-686.51,0.00032876,4]
[328006171,1716766356319,-2090.3,0.00032876,4]
[328006172,1716766356329,-340.68,0.00032876,4]
[328006173,1716766356338,-660.84,0.00032876,4]
[328006174,1716766356348,-1241.08,0.00032876,4]
[328006175,1716766356356,-1457.46,0.00032876,4]
[328006176,1716766356367,-1622.1,0.00032876,4]
[328006177,1716766356376,-519.03,0.00032876,4]
[328006178,1716766356386,-767.41,0.00032876,4]
[328006179,1716766356395,-540.35,0.00032876,4]
[328006180,1716766356404,-535.71,0.00032876,4]
[328006181,1716766356413,-754.4,0.00032876,4]
[328006182,1716766356422,-1446.35,0.00032876,4]
[328006183,1716766356432,-3162.97,0.00032876,4]
[328006184,1716766356441,-656.74,0.00032876,4]
[328006185,1716766356451,-1154.85,0.00032876,4]
[328006186,1716766356461,-698.24,0.00032876,4]
[328006187,1716766356471,-1334.79,0.00032876,4]
[328006188,1716766356480,-962.47,0.00032876,4]
[328006189,1716766356490,-1228.33,0.00032876,4]
[328006190,1716766356500,-500.0,0.00032877,2]
[328006191,1716766356511,-500.0,0.00032877,2]
[328006192,1716766356521,-244.91911488,0.00032877,2]
[328006193,1716766356531,-769.28,0.00032899,4]
[328006194,1716766356540,-13204.08186817,0.000329,30]
[328006195,1716766356550,-1350.0,0.00033,2]
[328006196,1716766356559,-1732.34832575,0.00033149,120]
[328006197,1716766356569,-944.44,0.0003315,4]
[328006198,1716766356579,-791.42,0.0003315,4]
[328006199,1716766356589,-822.31,0.0003315,4]
[328006200,1716766356599,-620.76,0.0003315,4]
[328006201,1716766356609,-481.9,0.0003315,4]
[328006202,1716766356618,-576.1,0.0003315,4]
[328006203,1716766356628,-697.5,0.0003315,4]
[328006204,1716766356638,-547.78,0.0003315,4]
[328006205,1716766356647,-745.11,0.0003315,4]
[328006206,1716766356657,-548.59,0.0003315,4]
[328006207,1716766356666,-521.76,0.0003315,4]
[328006208,1716766356676,-546.32,0.0003315,4]
[328006209,1716766356686,-503.3,0.0003315,4]
[328006210,1716766356696,-513.73,0.0003315,4]
[328006211,1716766356706,-1125.41,0.0003315,4]
[328006212,1716766356716,-534.62,0.0003315,4]
[328006213,1716766356726,-540.75,0.0003315,4]
[328006214,1716766356735,-500.0,0.0003315,4]
[328006215,1716766356745,-1235.19,0.0003315,4]
[328006216,1716766356755,-729.16,0.0003315,4]
[328006217,1716766356765,-864.88,0.0003315,4]
[328006218,1716766356775,-963.86,0.0003315,4]
[328006219,1716766356785,-196.42,0.0003315,4]
[328006220,1716766356795,-874.71,0.0003315,4]
[328006221,1716766356804,-835.43,0.0003315,4]
[328006222,1716766356813,-529.68,0.0003315,4]
[328006223,1716766356823,-1126.6,0.0003315,4]
[328006224,1716766356832,-1097.89,0.0003315,4]
[328006225,1716766356841,-866.64,0.0003315,4]
[328006226,1716766356851,-524.51,0.0003315,4]
[328006227,1716766356861,-500.0,0.0003315,4]
[328006228,1716766356870,-754.22,0.0003315,4]
[328006229,1716766356880,-1051.14,0.0003315,4]
[328006230,1716766356890,-500.0,0.0003315,4]
[328006231,1716766356900,-500.0,0.0003315,4]
[328006232,1716766356910,-1051.14,0.0003315,4]
[328006233,1716766356920,-500.0,0.0003315,4]
[328006234,1716766356930,-1380.33,0.0003315,4]
[328006235,1716766356940,-828.3,0.0003315,4]
[328006236,1716766356949,-832.97,0.0003315,4]
[328006237,1716766356960,-716.96,0.0003315,4]
[328006238,1716766356970,-500.0,0.0003315,4]
[328006239,1716766356980,-616.66,0.0003315,4]
[328006240,1716766356990,-179.56,0.0003315,4]
[328006241,1716766357000,-808.3,0.0003315,4]
[328006242,1716766357010,-406.12,0.0003315,4]
[328006243,1716766357020,-1217.19,0.0003315,4]
[328006244,1716766357030,-520.62,0.0003315,4]
[328006245,1716766357040,-1635.18,0.0003315,4]
[328006246,1716766357049,-988.23,0.0003315,4]
[328006247,1716766357059,-951.24,0.0003315,4]
[328006248,1716766357068,-4763.6,0.0003315,4]
[328006249,1716766357078,-1408.55,0.0003315,4]
[328006250,1716766357088,-773.49,0.0003315,4]
[328006251,1716766357097,-1097.24,0.0003315,4]
[328006252,1716766357107,-1770.78,0.0003315,4]